bitfinex/quotes_BTCUSD_20250620
["timestamp","ask_amount","ask_price","bid_price","bid_amount"]
[1750415576532,0.51522046,106130.0,106120.0,0.20436588]
[1750415576748,0.51522046,106130.0,106120.0,0.22968917]
[1750415577181,0.51522046,106130.0,106120.0,0.04122329]
[1750415577385,0.51522046,106130.0,106120.0,0.0338]
[1750415577680,0.51569288,106130.0,106120.0,0.0338]
[1750415577889,0.51569288,106130.0,106120.0,0.005]
[1750415579336,0.51569288,106130.0,106120.0,0.003]
[1750415579547,0.21673442,106120.0,106110.0,0.34443766]
[1750415579762,0.43237246,106120.0,106110.0,0.33501402]
[1750415579993,0.4229497,106120.0,106110.0,0.32559029]
[1750415580404,0.4229497,106120.0,106110.0,0.22108364]
[1750415580614,0.4229497,106120.0,106110.0,0.23993182]
[1750415580849,0.50880534,106120.0,106110.0,0.0326]
[1750415581071,0.50880534,106120.0,106110.0,0.0197]
[1750415581284,0.50880534,106120.0,106110.0,0.0217]
[1750415582159,0.50880534,106120.0,106110.0,0.21018364]
[1750415582381,0.50880534,106120.0,106110.0,0.0217]
[1750415582609,0.50880534,106120.0,106110.0,0.21760782]
[1750415582815,0.50880534,106120.0,106110.0,0.22703191]
[1750415583028,0.50880534,106120.0,106110.0,0.22803191]
[1750415583241,0.50880534,106120.0,106110.0,0.22503191]
[1750415583450,0.50880534,106120.0,106110.0,0.26127982]
[1750415583914,0.50880534,106120.0,106110.0,0.25185591]
[1750415585104,0.50880534,106120.0,106110.0,0.24243191]
[1750415585364,0.50880534,106120.0,106110.0,0.22603191]
[1750415586402,0.45535112,106120.0,106110.0,0.26940337]
[1750415586605,0.27630791,106120.0,106110.0,0.2694023]
[1750415586837,0.47419708,106120.0,106110.0,0.2694023]
[1750415587557,0.47419708,106120.0,106110.0,0.2505551]
[1750415587949,0.47419708,106120.0,106110.0,0.25997874]
[1750415588298,0.54650177,106120.0,106110.0,0.25997874]
[1750415588954,0.3486126,106120.0,106110.0,0.2694023]
[1750415590099,0.3391894,106120.0,106110.0,0.2694023]
[1750415591690,0.34861251,106120.0,106110.0,0.2694023]
[1750415592121,0.34861189,106120.0,106110.0,0.2694023]
[1750415592541,0.05851704,106130.0,106120.0,0.23273468]
[1750415592818,5.54500624,106130.0,106120.0,0.24773468]
[1750415593025,5.35655553,106130.0,106120.0,0.24773468]
[1750415593462,5.26127607,106130.0,106120.0,0.24773468]
[1750415593674,0.22169821,106130.0,106120.0,0.24773468]
[1750415594117,0.22269821,106130.0,106120.0,0.24773468]
[1750415594641,0.23212043,106130.0,106120.0,0.24773468]
[1750415595905,0.06051589,106130.0,106120.0,0.26715218]
[1750415596111,0.22269785,106130.0,106120.0,0.24773468]
[1750415596766,0.20385402,106130.0,106120.0,0.24773468]
[1750415596974,0.04167242,106130.0,106120.0,0.24773468]
[1750415597837,0.00247242,106130.0,106120.0,0.24773468]
[1750415598045,0.05113402,106130.0,106120.0,0.24773468]
[1750415598248,0.04171242,106130.0,106120.0,0.24773468]
[1750415598452,0.05113402,106130.0,106120.0,0.24773468]
[1750415599420,0.0605558,106130.0,106120.0,0.24773468]
[1750415599644,0.05113402,106130.0,106120.0,0.24773468]
[1750415599866,0.0605558,106130.0,106120.0,0.24773468]
[1750415603340,0.05113402,106130.0,106120.0,0.24773468]
[1750415603729,0.04171242,106130.0,106120.0,0.24773468]
[1750415603939,0.05113402,106130.0,106120.0,0.24773468]
[1750415604161,0.04171242,106130.0,106120.0,0.24773468]
[1750415604339,0.0511342,106130.0,106120.0,0.24773468]
[1750415604562,0.04171242,106130.0,106120.0,0.24773468]
[1750415604705,0.00247242,106130.0,106120.0,0.24773468]
[1750415604913,0.04167242,106130.0,106120.0,0.24773468]
[1750415605340,0.05109402,106130.0,106120.0,0.24773468]
[1750415606300,0.0605158,106130.0,106120.0,0.24773468]
[1750415607591,0.05109402,106130.0,106120.0,0.24773468]
[1750415607735,0.06051571,106130.0,106120.0,0.24773468]
[1750415608658,0.05109402,106130.0,106120.0,0.24773468]
[1750415610517,0.0605158,106130.0,106120.0,0.24773468]
[1750415611433,0.06993767,106130.0,106120.0,0.24773468]
[1750415612184,0.0605158,106130.0,106120.0,0.24773468]
[1750415613766,0.06993767,106130.0,106120.0,0.24773468]
[1750415613971,0.07935972,106130.0,106120.0,0.24773468]
[1750415614179,0.07935963,106130.0,106120.0,0.24773468]
[1750415614599,0.08878185,106130.0,106120.0,0.21667033]
[1750415615438,0.07935963,106130.0,106120.0,0.21667033]
[1750415615906,0.07935963,106130.0,106120.0,0.23167033]
[1750415616117,0.06993767,106130.0,106120.0,0.23167033]
[1750415617146,0.07935963,106130.0,106120.0,0.23167033]
[1750415618498,0.0605158,106130.0,106120.0,0.23167033]
[1750415618909,0.06993785,106130.0,106120.0,0.23167033]
[1750415619110,0.06993776,106130.0,106120.0,0.23167033]
[1750415620147,0.06993776,106130.0,106120.0,0.21667033]
[1750415621624,0.0605158,106130.0,106120.0,0.21667033]
[1750415621868,0.05109402,106130.0,106120.0,0.23167033]
[1750415622058,0.0605158,106130.0,106120.0,0.23167033]
[1750415622836,0.06051571,106130.0,106120.0,0.23167033]
[1750415625482,0.04167242,106130.0,106120.0,0.23167033]
[1750415625711,0.04167242,106130.0,106120.0,0.24707033]
[1750415626185,0.05109411,106130.0,106120.0,0.24707033]
[1750415626840,0.05109411,106130.0,106120.0,0.23167033]
[1750415627271,0.04167242,106130.0,106120.0,0.23167033]
[1750415627491,0.04167242,106130.0,106120.0,0.26922696]
[1750415628034,0.05109402,106130.0,106120.0,0.26922696]
[1750415628498,0.05109402,106130.0,106120.0,0.28522696]
[1750415629196,0.0605158,106130.0,106120.0,0.28522696]
[1750415629577,0.05109402,106130.0,106120.0,0.28522696]
[1750415629787,0.06051571,106130.0,106120.0,0.28522696]
[1750415630197,0.06051571,106130.0,106120.0,0.26922696]
[1750415630876,0.05109402,106130.0,106120.0,0.26922696]
[1750415631477,0.06051571,106130.0,106120.0,0.26922696]
[1750415632486,0.06993758,106130.0,106120.0,0.26922696]
[1750415632704,0.06993749,106130.0,106120.0,0.26922696]
[1750415633106,0.06051571,106130.0,106120.0,0.26922696]
[1750415636347,0.05109402,106130.0,106120.0,0.26922696]
[1750415636961,0.00247242,106130.0,106120.0,0.26922696]
[1750415637191,0.00247242,106130.0,106120.0,0.60829063]
[1750415637406,0.00247242,106130.0,106120.0,0.85628956]
[1750415637623,0.00247242,106130.0,106120.0,0.91253208]
[1750415638067,0.00247242,106130.0,106120.0,0.91246817]
[1750415638276,0.00147242,106130.0,106120.0,0.91246817]
[1750415638748,0.00147242,106130.0,106120.0,0.91346817]
[1750415639396,0.00047242,106130.0,106120.0,0.91346817]
[1750415639835,0.00047242,106130.0,106120.0,0.91446817]
[1750415640247,0.00047242,106130.0,106120.0,0.5919045]
[1750415640461,0.00047242,106130.0,106120.0,0.91446817]
[1750415648450,0.00047242,106130.0,106120.0,1.23703184]
[1750415648683,0.00047242,106130.0,106120.0,0.91446817]
[1750415650616,0.00047242,106130.0,106120.0,0.91440895]
[1750415656441,0.00047242,106130.0,106120.0,1.23697262]
[1750415656660,0.00047242,106130.0,106120.0,1.19941599]
[1750415658125,0.00047242,106130.0,106120.0,0.87685232]
[1750415658806,0.00047242,106130.0,106120.0,0.55428865]
[1750415659013,0.00047242,106130.0,106120.0,0.87685232]
[1750415664045,0.00047242,106130.0,106120.0,0.55428865]
[1750415664249,0.00047242,106130.0,106120.0,0.87685232]
[1750415668383,0.00047242,106130.0,106120.0,0.55428865]
[1750415668589,0.00047242,106130.0,106120.0,0.87685232]
[1750415671701,0.00047242,106130.0,106120.0,0.8206098]
[1750415672363,0.00047242,106130.0,106120.0,1.14317347]
[1750415672762,0.00047242,106130.0,106120.0,1.21799809]
[1750415673348,0.00047242,106130.0,106120.0,1.21699809]
[1750415673557,0.00047242,106130.0,106120.0,1.21799809]
[1750415673772,0.00047242,106130.0,106120.0,1.22099809]
[1750415682710,0.00047242,106130.0,106120.0,1.24930009]
[1750415685348,0.00047242,106130.0,106120.0,0.60417275]
[1750415685803,0.00047242,106130.0,106120.0,0.92673642]
[1750415686429,0.00047242,106130.0,106120.0,0.91023642]
[1750415692290,0.00047242,106130.0,106120.0,1.23280009]
[1750415692426,0.00047242,106130.0,106120.0,1.24930009]
[1750415696213,0.00047242,106130.0,106120.0,0.60417275]
[1750415696416,0.00047242,106130.0,106120.0,0.92673642]
[1750415696582,0.00047242,106130.0,106120.0,1.24930009]
[1750415699325,0.00047242,106130.0,106120.0,0.92673642]
[1750415700789,0.00047242,106130.0,106120.0,1.24930009]
[1750415701553,0.00047242,106130.0,106120.0,1.23280009]
[1750415705295,0.03563242,106150.0,106140.0,0.21669384]
[1750415705482,0.03563242,106150.0,106140.0,0.40887519]
[1750415705685,0.05103242,106150.0,106140.0,0.40887519]
[1750415706702,0.05203242,106150.0,106140.0,0.40887519]
[1750415707155,0.05303242,106150.0,106140.0,0.40887519]
[1750415707572,0.002,106150.0,106140.0,0.82671779]
[1750415708057,0.002,106150.0,106140.0,1.22205349]
[1750415708476,0.002,106150.0,106140.0,0.89948982]
[1750415709752,0.001,106150.0,106140.0,0.89948982]
[1750415709963,0.073,106160.0,106150.0,0.21667343]
[1750415710846,0.073,106160.0,106150.0,0.25425478]
[1750415711272,0.075,106160.0,106150.0,0.25425478]
[1750415711526,0.075,106160.0,106150.0,0.21667343]
[1750415711730,0.08441894,106160.0,106150.0,0.37115343]
[1750415711947,0.09383806,106160.0,106150.0,0.37115343]
[1750415712162,0.08441894,106160.0,106150.0,0.37115343]
[1750415712372,0.112677,106160.0,106150.0,0.22609361]
[1750415712580,0.12209665,106160.0,106150.0,0.22609361]
[1750415712792,0.30107258,106160.0,106150.0,0.20725352]
[1750415713002,0.33305085,106160.0,106150.0,0.20725352]
[1750415713213,0.00942009,106150.0,106140.0,0.24485359]
[1750415713433,0.06016001,106150.0,106140.0,0.25427493]
[1750415713633,0.06016001,106150.0,106140.0,0.21669358]
[1750415713850,0.06958028,106150.0,106140.0,0.21669358]
[1750415714069,0.07900064,106150.0,106140.0,0.21669358]
[1750415714771,0.06958028,106150.0,106140.0,0.21769358]
[1750415716664,0.07900064,106150.0,106140.0,0.21769358]
[1750415717097,0.06016001,106150.0,106140.0,0.21769358]
[1750415718385,0.06958019,106150.0,106140.0,0.21769358]
[1750415718674,0.06016001,106150.0,106140.0,0.21769358]
[1750415719107,0.0319,106150.0,106140.0,0.21769358]
[1750415720362,0.0723,106150.0,106140.0,0.21769358]
[1750415720595,0.0723,106150.0,106140.0,0.25527493]
[1750415721633,0.4123,106150.0,106140.0,0.25527493]
[1750415731809,0.3963,106150.0,106140.0,0.25527493]
[1750415732066,0.3804,106150.0,106140.0,0.25527493]
[1750415732499,0.0404,106150.0,106140.0,0.25527493]
[1750415734829,0.0404,106150.0,106140.0,0.31164696]
[1750415735567,0.0404,106150.0,106140.0,0.25527493]
[1750415737457,0.0404,106150.0,106140.0,0.31164696]
[1750415743983,0.03091,106150.0,106140.0,0.31164696]
[1750415744139,0.04751,106150.0,106140.0,0.31164696]
[1750415745167,0.03091,106150.0,106140.0,0.31164696]
[1750415748945,0.03091,106150.0,106140.0,0.27406561]
[1750415749976,0.03091,106150.0,106140.0,0.21769358]
[1750415752089,0.04661,106150.0,106140.0,0.25528796]
[1750415752500,0.04661,106150.0,106140.0,0.27408515]
[1750415753242,0.04661,106150.0,106140.0,0.29350265]
[1750415753430,0.04661,106150.0,106140.0,0.27408515]
[1750415753632,0.03091,106150.0,106140.0,0.27408515]
[1750415754652,0.03091,106150.0,106140.0,0.21769358]
[1750415761899,0.03091,106150.0,106140.0,0.24999358]
[1750415762805,0.03091,106150.0,106140.0,0.23409358]
[1750415763286,0.03091,106150.0,106140.0,0.32813539]
[1750415763777,0.40423894,106160.0,106150.0,0.21667343]
[1750415764005,0.3551,106160.0,106150.0,0.21667343]
[1750415764235,0.34,106160.0,106150.0,0.25429015]
[1750415764482,0.37972,106160.0,106150.0,0.25429015]
[1750415764910,0.39622,106160.0,106150.0,0.25429015]
[1750415765117,0.39722,106160.0,106150.0,0.25429015]
[1750415765374,0.39822,106160.0,106150.0,0.25429015]
[1750415768249,0.38172,106160.0,106150.0,0.25429015]
[1750415770504,0.04172,106160.0,106150.0,0.25429015]
[1750415770717,0.002,106160.0,106150.0,0.31071524]
[1750415770927,0.04172,106160.0,106150.0,0.32641524]
[1750415771064,0.04172,106160.0,106150.0,0.47981524]
[1750415771282,0.04172,106160.0,106150.0,0.46411524]
[1750415771707,0.04172,106160.0,106150.0,0.40769015]
[1750415779630,0.04172,106160.0,106150.0,0.42319015]
[1750415780540,0.04072,106160.0,106150.0,0.42319015]
[1750415780775,0.03972,106160.0,106150.0,0.42319015]
[1750415780982,0.03972,106160.0,106150.0,0.42419015]
[1750415782339,0.03972,106160.0,106150.0,0.27079015]
[1750415782593,0.03972,106160.0,106150.0,0.40849015]
[1750415782879,0.04913894,106160.0,106150.0,0.25529015]
[1750415783082,0.08063903,106160.0,106150.0,0.25529015]
[1750415783299,0.09005815,106160.0,106150.0,0.25529015]
[1750415783506,0.66320554,106160.0,106150.0,0.25529051]
[1750415783740,0.78878553,106160.0,106150.0,0.001]
[1750415783950,5.82936632,106160.0,106150.0,0.18941262]
[1750415784160,5.82936632,106160.0,106150.0,0.19883316]
[1750415784574,5.81994685,106160.0,106150.0,0.18941262]
[1750415784778,5.81994685,106160.0,106150.0,0.19883325]
[1750415785531,5.81052711,106160.0,106150.0,0.19883325]
[1750415785796,5.81052711,106160.0,106150.0,0.001]
[1750415786022,5.81052711,106160.0,106150.0,0.19883325]
[1750415787184,5.81052711,106160.0,106150.0,0.01042063]
[1750415787443,5.81052711,106160.0,106150.0,0.001]
[1750415788394,5.81052711,106160.0,106150.0,0.19883325]
[1750415790739,5.82936632,106160.0,106150.0,0.21767406]
[1750415790936,5.82936632,106160.0,106150.0,0.20825379]
[1750415791179,5.82936632,106160.0,106150.0,0.21767424]
[1750415792399,5.76373301,106160.0,106150.0,0.22709442]
[1750415793416,5.76373301,106160.0,106150.0,0.2270946]
[1750415794630,5.76373301,106160.0,106150.0,0.23651487]
[1750415796405,5.76373301,106160.0,106150.0,0.23651442]
[1750415797434,5.76373301,106160.0,106150.0,0.23651397]
[1750415797913,5.76373301,106160.0,106150.0,0.22709388]
[1750415798308,5.85900286,106160.0,106150.0,0.2176737]
[1750415798926,5.85900286,106160.0,106150.0,0.22709388]
[1750415799577,5.68002702,106160.0,106150.0,0.23651352]
[1750415799803,5.68944667,106160.0,106150.0,0.23651352]
[1750415800326,5.87784154,106160.0,106150.0,0.23651352]
[1750415801898,5.59417682,106160.0,106150.0,0.23651352]
[1750415802198,5.78257169,106160.0,106150.0,0.23651352]
[1750415802420,5.59417682,106160.0,106150.0,0.23651352]
[1750415802616,5.58475717,106160.0,106150.0,0.23651352]
[1750415803062,5.56905717,106160.0,106150.0,0.23651352]
[1750415803489,5.55963761,106160.0,106150.0,0.23651352]
[1750415803911,0.50963699,106160.0,106150.0,0.23651352]
[1750415804123,0.52847576,106160.0,106150.0,0.23651352]
[1750415805252,0.53789532,106160.0,106150.0,0.23651352]
[1750415805803,0.55349603,106160.0,106150.0,0.23651352]
[1750415807246,0.7418909,106160.0,106150.0,0.23651352]
[1750415807446,0.8257776,106160.0,106150.0,0.22709352]
[1750415808525,0.73247178,106160.0,106150.0,0.22709352]
[1750415808731,0.73247178,106160.0,106150.0,0.23651352]
[1750415809574,0.54407691,106160.0,106150.0,0.23651352]
[1750415810653,0.5096377,106160.0,106150.0,0.23651352]
[1750415810877,0.4237778,106160.0,106150.0,0.23651352]
[1750415811085,0.56739833,106160.0,106150.0,0.23651352]
[1750415811292,0.41435833,106160.0,106150.0,0.23651352]
[1750415811459,0.56101771,106160.0,106150.0,0.23651352]
[1750415811661,0.57043727,106160.0,106150.0,0.23651352]
[1750415812039,0.56101771,106160.0,106150.0,0.23651352]
[1750415815166,0.57611771,106160.0,106150.0,0.23651352]
[1750415815338,0.58553727,106160.0,106150.0,0.23651352]
[1750415815559,0.57611771,106160.0,106150.0,0.23651352]
[1750415815754,0.58553718,106160.0,106150.0,0.23651352]
[1750415816294,0.57611771,106160.0,106150.0,0.23651352]
[1750415816511,0.56101771,106160.0,106150.0,0.23651352]
[1750415817047,0.57043727,106160.0,106150.0,0.23651352]
[1750415817281,0.56101771,106160.0,106150.0,0.23651352]
[1750415817502,0.57043727,106160.0,106150.0,0.23651352]
[1750415817737,0.55159833,106160.0,106150.0,0.23651352]
[1750415818729,0.5610178,106160.0,106150.0,0.23651352]
[1750415819230,0.57043736,106160.0,106150.0,0.23651352]
[1750415823351,0.75883223,106160.0,106150.0,0.23651352]
[1750415823504,0.76825197,106160.0,106150.0,0.23651352]
[1750415823720,0.78375197,106160.0,106150.0,0.23651352]
[1750415826270,0.78375197,106160.0,106150.0,0.22709352]
[1750415826479,0.77433294,106160.0,106150.0,0.22709352]
[1750415827380,0.77433294,106160.0,106150.0,0.23651352]
[1750415829491,0.77433294,106160.0,106150.0,0.22709352]
[1750415829711,0.77433294,106160.0,106150.0,0.21767343]
[1750415829934,0.79946859,106160.0,106150.0,0.21767343]
[1750415831000,0.77433294,106160.0,106150.0,0.22709352]
[1750415831220,0.57651833,106160.0,106150.0,0.23651352]
[1750415831429,0.56101833,106160.0,106150.0,0.23651352]
[1750415832414,0.57043798,106160.0,106150.0,0.23651352]
[1750415832834,0.56101833,106160.0,106150.0,0.23651352]
[1750415834416,0.75883285,106160.0,106150.0,0.23651352]
[1750415834651,0.57043798,106160.0,106150.0,0.23651352]
[1750415837093,0.65090109,106160.0,106150.0,0.23651352]
[1750415838748,0.8487157,106160.0,106150.0,0.23651352]
[1750415838982,0.8546964,106160.0,106150.0,0.22709352]
[1750415839196,0.63206214,106160.0,106150.0,0.23651352]
[1750415840296,0.82045701,106160.0,106150.0,0.23651352]
[1750415840515,0.82987675,106160.0,106150.0,0.23651352]
[1750415840741,0.82987675,106160.0,106150.0,0.22709352]
[1750415841177,0.84597675,106160.0,106150.0,0.22709352]
[1750415843148,0.76551364,106160.0,106150.0,0.22709352]
[1750415843924,0.76551364,106160.0,106150.0,0.21767343]
[1750415844335,0.76551364,106160.0,106150.0,0.20825325]
[1750415844805,0.75609417,106160.0,106150.0,0.20825361]
[1750415845229,0.75609417,106160.0,106150.0,0.21767388]
[1750415845641,0.85136402,106160.0,106150.0,0.21767388]
[1750415846370,0.85136402,106160.0,106150.0,0.20825361]
[1750415848209,0.85136402,106160.0,106150.0,0.19883325]
[1750415848429,0.84194446,106160.0,106150.0,0.20825379]
[1750415848648,0.84194446,106160.0,106150.0,0.21767424]
[1750415848856,0.84194446,106160.0,106150.0,0.2270946]
[1750415850715,0.84194446,106160.0,106150.0,0.21767424]
[1750415851791,0.83252472,106160.0,106150.0,0.19883325]
[1750415852020,0.49252472,106160.0,106150.0,0.20825379]
[1750415853853,0.83252472,106160.0,106150.0,0.20825379]
[1750415854573,0.83252472,106160.0,106150.0,0.21767424]
[1750415854780,0.83252472,106160.0,106150.0,0.2270946]
[1750415854986,0.84194437,106160.0,106150.0,0.23651442]
[1750415855202,0.82584437,106160.0,106150.0,0.23651442]
[1750415855404,0.48584437,106160.0,106150.0,0.23651442]
[1750415855735,0.82584437,106160.0,106150.0,0.22709424]
[1750415857503,0.83526375,106160.0,106150.0,0.24209424]
[1750415857682,0.83526375,106160.0,106150.0,0.22709424]
[1750415857813,0.83526375,106160.0,106150.0,0.23651442]
[1750415858832,0.83526375,106160.0,106150.0,0.22709424]
[1750415859036,0.82584437,106160.0,106150.0,0.21767397]
[1750415860345,0.82584437,106160.0,106150.0,0.22709424]
[1750415861004,0.67280437,106160.0,106150.0,0.22709424]
[1750415861229,0.34941912,106160.0,106150.0,0.25151424]
[1750415861446,0.53232,106160.0,106150.0,0.26681424]
[1750415861893,0.54173903,106160.0,106150.0,0.26681424]
[1750415862548,0.55115824,106160.0,106150.0,0.26681424]
[1750415862968,0.55115815,106160.0,106150.0,0.26681424]
[1750415864198,0.54173903,106160.0,106150.0,0.26681424]
[1750415864403,0.53232,106160.0,106150.0,0.26681424]
[1750415864618,0.54173903,106160.0,106150.0,0.26681424]
[1750415865827,0.53232,106160.0,106150.0,0.26681424]
[1750415866044,0.22193056,106170.0,106160.0,0.21665302]
[1750415866045,0.01471466,106170.0,106160.0,0.21665302]
[1750415866261,0.06349271,106170.0,106160.0,0.24695302]
[1750415866704,0.07291085,106170.0,106160.0,0.24695302]
[1750415867417,0.41391085,106170.0,106160.0,0.24704568]
[1750415867632,0.41491085,106170.0,106160.0,0.24704568]
[1750415869533,0.42432917,106170.0,106160.0,0.24704568]
[1750415869746,0.41491094,106170.0,106160.0,0.24704568]
[1750415871111,0.43491094,106170.0,106160.0,0.24704568]
[1750415875634,0.43491085,106170.0,106160.0,0.24704568]
[1750415875839,0.42549271,106170.0,106160.0,0.24704568]
[1750415876781,0.41607466,106170.0,106160.0,0.24704568]
[1750415877530,0.42549271,106170.0,106160.0,0.24704568]
[1750415877931,0.41607466,106170.0,106160.0,0.24704568]
[1750415878409,0.4254928,106170.0,106160.0,0.24704568]
[1750415878623,0.42549271,106170.0,106160.0,0.24704568]
[1750415879448,0.41607466,106170.0,106160.0,0.24704568]
[1750415882126,0.406484,106170.0,106160.0,0.24704568]
[1750415883170,0.41580408,106170.0,106160.0,0.24704568]
[1750415883400,0.406484,106170.0,106160.0,0.24704568]
[1750415885984,0.4158107,106170.0,106160.0,0.24704568]
[1750415888152,0.43464734,106170.0,106160.0,0.23174568]
[1750415888602,0.43464725,106170.0,106160.0,0.23174568]
[1750415889240,0.42522893,106170.0,106160.0,0.23174568]
[1750415890188,0.43464734,106170.0,106160.0,0.23174568]
[1750415892041,0.42522893,106170.0,106160.0,0.23174568]
[1750415892485,0.43464734,106170.0,106160.0,0.23174568]
[1750415892664,0.42522893,106170.0,106160.0,0.23174568]
[1750415893944,0.42522884,106170.0,106160.0,0.23174568]
[1750415894920,0.42522884,106170.0,106160.0,0.24784568]
[1750415895326,0.42522875,106170.0,106160.0,0.24784568]
[1750415895529,0.4158107,106170.0,106160.0,0.24784568]
[1750415895948,0.42522884,106170.0,106160.0,0.24784568]
[1750415896866,0.43464716,106170.0,106160.0,0.24784568]
[1750415897076,0.42522884,106170.0,106160.0,0.24784568]
[1750415897556,0.43464707,106170.0,106160.0,0.23174568]
[1750415897763,0.42522884,106170.0,106160.0,0.23174568]
[1750415902042,0.4158107,106170.0,106160.0,0.23174568]
[1750415903723,0.42522884,106170.0,106160.0,0.23174568]
[1750415903979,0.4158107,106170.0,106160.0,0.23174568]
[1750415904356,0.42522893,106170.0,106160.0,0.23174568]
[1750415905149,0.44994734,106170.0,106160.0,0.21674568]
[1750415906191,0.45936584,106170.0,106160.0,0.21674568]
[1750415906500,0.44994734,106170.0,106160.0,0.21674568]
[1750415906701,0.59336893,106170.0,106160.0,0.21674568]
[1750415906931,0.5686507,106170.0,106160.0,0.21674568]
[1750415907143,0.4157707,106170.0,106160.0,0.23204568]
[1750415907390,0.4157707,106170.0,106160.0,0.24764568]
[1750415908188,0.4147707,106170.0,106160.0,0.24764568]
[1750415908346,0.4137707,106170.0,106160.0,0.24764568]
[1750415908759,0.4137707,106170.0,106160.0,0.24864568]
[1750415908972,0.404444,106170.0,106160.0,0.24864568]
[1750415914913,0.404444,106170.0,106160.0,0.40148568]
[1750415918296,0.404444,106170.0,106160.0,0.37588568]
[1750415918429,0.404444,106170.0,106160.0,0.3853048]
[1750415919233,0.404444,106170.0,106160.0,0.4011048]
[1750415921304,0.01677495,106170.0,106160.0,1.48880587]
[1750415921536,0.0013953,106180.0,106170.0,0.24783262]
[1750415921764,0.0013953,106180.0,106170.0,1.27675889]
[1750415923524,0.0013953,106180.0,106170.0,1.30458005]
[1750415923729,0.0013953,106180.0,106170.0,1.30758005]
[1750415924169,0.0013953,106180.0,106170.0,1.20834005]
[1750415924346,0.0013953,106180.0,106170.0,1.21234005]
[1750415924997,0.0013953,106180.0,106170.0,1.21129897]
[1750415927470,0.0013953,106180.0,106170.0,1.23296397]
[1750415929310,0.0013953,106180.0,106170.0,1.38296397]
[1750415933402,0.0013953,106180.0,106170.0,1.48220397]
[1750415933609,0.0013953,106180.0,106170.0,1.53220397]
[1750415936449,0.0013953,106180.0,106170.0,1.5568202]
[1750415937971,0.00145336,106190.0,106180.0,0.91005534]
[1750415938173,0.00145336,106190.0,106180.0,1.15809427]
[1750415938777,0.00145336,106190.0,106180.0,1.17976027]
[1750415939568,0.00145336,106190.0,106180.0,1.18276027]
[1750415939769,0.00145336,106190.0,106180.0,1.33276027]
[1750415939993,0.00145336,106190.0,106180.0,1.38171897]
[1750415940196,0.00145336,106190.0,106180.0,1.38571897]
[1750415940396,0.00145336,106190.0,106180.0,1.33676027]
[1750415940603,0.00145336,106190.0,106180.0,1.3613765]
[1750415941881,0.00145336,106190.0,106180.0,1.6576765]
[1750415942089,0.00145336,106190.0,106180.0,1.68201897]
[1750415942275,0.00145336,106190.0,106180.0,1.88201897]
[1750415942831,0.00145336,106190.0,106180.0,1.8576765]
[1750415944119,0.00145336,106190.0,106180.0,1.98230027]
[1750415944967,0.00145336,106190.0,106180.0,2.62610546]
[1750415945431,0.00145336,106190.0,106180.0,2.70072169]
[1750415945654,0.00145336,106200.0,106190.0,1.71328014]
[1750415945869,0.00145336,106200.0,106190.0,2.0251353]
[1750415946226,0.00145336,106200.0,106190.0,2.04947777]
[1750415946849,0.03914469,106200.0,106190.0,2.02486154]
[1750415947086,0.06741319,106200.0,106190.0,1.67856963]
[1750415947311,0.00145336,106200.0,106190.0,1.7588043]
[1750415947526,0.00145336,106200.0,106190.0,2.10536997]
[1750415947740,0.00145336,106200.0,106190.0,1.7588043]
[1750415947960,0.00145336,106200.0,106190.0,1.807763]
[1750415948376,0.00145336,106200.0,106190.0,2.05447777]
[1750415948993,0.00145336,106200.0,106190.0,1.73230649]
[1750415949417,0.00145336,106200.0,106190.0,1.82634982]
[1750415949625,0.00145336,106200.0,106190.0,1.73230649]
[1750415949836,0.00145336,106200.0,106190.0,1.73430649]
[1750415950054,0.00136628,106200.0,106190.0,1.73807649]
[1750415950260,0.00136628,106200.0,106190.0,1.71373402]
[1750415950493,0.00136628,106200.0,106190.0,1.83211982]
[1750415950681,0.00136628,106200.0,106190.0,2.12841982]
[1750415953691,0.00136628,106200.0,106190.0,2.10407735]
[1750415954108,0.00136628,106200.0,106190.0,2.12841982]
[1750415954603,0.00136628,106200.0,106190.0,2.14728982]
[1750415955459,0.00156948,106210.0,106190.0,2.41949741]
[1750415955682,0.0002032,106210.0,106200.0,2.16765378]
[1750415955908,0.0002032,106210.0,106200.0,2.1896435]
[1750415956125,0.0002032,106210.0,106200.0,2.18876029]
[1750415956342,0.0002032,106210.0,106200.0,2.16530103]
[1750415956564,0.0002032,106210.0,106200.0,2.78514081]
[1750415956797,0.0002032,106210.0,106200.0,2.67140822]
[1750415957033,0.0002032,106210.0,106200.0,2.69496014]
[1750415957280,0.0002032,106210.0,106200.0,2.42041814]
[1750415957497,0.0002032,106210.0,106200.0,2.49439019]
[1750415957714,0.0002032,106210.0,106200.0,2.49039019]
[1750415957932,0.0002032,106210.0,106200.0,2.16855167]
[1750415958219,0.0002032,106210.0,106200.0,2.19801093]
[1750415958425,0.0002032,106210.0,106200.0,2.20001093]
[1750415958643,0.0002032,106210.0,106200.0,2.15351136]
[1750415958881,0.0002032,106210.0,106200.0,2.15151136]
[1750415959108,0.0002032,106210.0,106200.0,2.15351136]
[1750415959331,0.0002032,106210.0,106200.0,2.14275136]
[1750415959571,0.0002032,106210.0,106200.0,2.43905136]
[1750415959787,0.0002032,106210.0,106200.0,2.48905136]
[1750415960011,0.0002032,106210.0,106200.0,2.43637136]
[1750415960229,0.0002032,106210.0,106200.0,2.63905136]
[1750415960447,0.0002032,106210.0,106200.0,2.53901136]
[1750415964544,0.0002032,106210.0,106200.0,2.39713136]
[1750415964751,0.0002032,106210.0,106200.0,2.47988005]
[1750415965482,0.0002032,106210.0,106200.0,2.57331136]
[1750415965725,0.0002032,106210.0,106200.0,2.36444005]
[1750415965952,0.0002032,106210.0,106200.0,2.45787136]
[1750415967157,0.0002032,106210.0,106200.0,2.25523136]
[1750415967377,0.0002032,106210.0,106200.0,2.45787136]
[1750415967763,0.0002032,106210.0,106200.0,2.26599136]
[1750415967971,0.0002032,106210.0,106200.0,2.45787136]
[1750415968395,0.0002032,106210.0,106200.0,2.40787136]
[1750415968549,0.0002032,106210.0,106200.0,2.45787136]
[1750415969960,0.0002032,106210.0,106200.0,2.40787136]
[1750415970181,0.0002032,106210.0,106200.0,2.45787136]
[1750415970942,0.0156032,106210.0,106200.0,1.76419432]
[1750415971144,0.0156032,106210.0,106200.0,1.11155432]
[1750415971356,0.0309032,106210.0,106200.0,1.40115182]
[1750415971562,0.0309032,106210.0,106200.0,1.51814005]
[1750415971771,0.0309032,106210.0,106200.0,1.04366153]
[1750415971978,0.0309032,106210.0,106200.0,1.27121551]
[1750415972388,0.0309032,106210.0,106200.0,1.19630153]
[1750415973508,0.0309032,106210.0,106200.0,1.00442153]
[1750415973696,0.0309032,106210.0,106200.0,1.19626153]
[1750415974235,0.0309032,106210.0,106200.0,1.17739153]
[1750415974436,0.0309032,106210.0,106200.0,1.27082284]
[1750415974653,0.0309032,106210.0,106200.0,1.26882284]
[1750415974865,0.0309032,106210.0,106200.0,1.11818284]
[1750415975092,0.0309032,106210.0,106200.0,1.27082284]
[1750415975306,0.0308552,106210.0,106200.0,1.27082284]
[1750415975509,0.0308552,106210.0,106200.0,1.26482284]